fUST/lending_fUST_20241110
["ID","MTS","AMOUNT","RATE_DAILY","PERIOD"]
[341785828,1731227441724,-500.0,0.00030136,2]
[341785829,1731227441733,-166.20039571,0.00030136,2]
[341785830,1731227441742,-500.0,0.00030136,2]
[341785831,1731227441751,-500.0,0.00030136,2]
[341785832,1731227441761,-456.413663,0.00030136,7]
[341785833,1731227441770,-500.0,0.00030136,2]
[341785834,1731227441779,-456.413663,0.00030136,7]
[341785835,1731227441789,-500.0,0.00030136,2]
[341785836,1731227441799,-503.10449362,0.00030136,2]
[341785837,1731227441808,-500.0,0.00030136,2]
[341785838,1731227441817,-500.0,0.00030136,2]
[341785839,1731227441826,-500.0,0.00030136,2]
[341785840,1731227441835,-500.0,0.00030136,2]
[341785841,1731227441844,-500.0,0.00030136,2]
[341785842,1731227441853,-500.0,0.00030136,2]
[341785843,1731227441862,-513.2337159,0.00030136,2]
[341785844,1731227441871,-512.04210063,0.00030136,2]
[341785845,1731227441880,-500.0,0.00030136,2]
[341785846,1731227441890,-500.0,0.00030136,2]
[341785847,1731227441899,-500.0,0.00030136,2]
[341785848,1731227441908,-500.0,0.00030136,2]
[341785849,1731227441917,-360.541702,0.00030136,7]
[341785850,1731227441927,-360.541702,0.00030136,7]
[341785851,1731227441936,-360.541702,0.00030136,7]
[341785852,1731227441946,-360.541702,0.00030136,7]
[341785853,1731227441956,-527.79531851,0.00030136,2]
[341785854,1731227441966,-500.0,0.00030136,2]
[341785855,1731227441976,-500.0,0.00030136,2]
[341785856,1731227441985,-500.0,0.00030136,2]
[341785857,1731227441995,-500.0,0.00030136,2]
[341785858,1731227442005,-500.0,0.00030136,2]
[341785859,1731227442014,-500.0,0.00030136,2]
[341785860,1731227442024,-500.0,0.00030136,2]
[341785861,1731227442035,-500.0,0.00030136,2]
[341785862,1731227442043,-500.0,0.00030136,2]
[341785863,1731227442052,-500.0,0.00030136,2]
[341785864,1731227442061,-151.637364,0.00030136,7]
[341785865,1731227442071,-500.48309827,0.00030136,2]
[341785866,1731227442080,-500.0,0.00030136,2]
[341785867,1731227442089,-500.0,0.00030136,2]
[341785868,1731227442098,-500.0,0.00030136,2]
[341785869,1731227442107,-151.0,0.00030136,7]
[341785870,1731227442116,-151.0,0.00030136,7]
[341785871,1731227442125,-318.68756427,0.00030136,2]
[341785872,1731227442134,-151.0,0.00030136,7]
[341785873,1731227442143,-151.0,0.00030136,7]
[341785874,1731227442152,-500.0,0.00030136,2]
[341785875,1731227442161,-501.83,0.00030136,2]
[341785876,1731227442170,-500.0,0.00030136,2]
[341785877,1731227442179,-500.0,0.00030136,2]
[341785878,1731227442188,-500.0,0.00030136,2]
[341785879,1731227442196,-500.0,0.00030136,2]
[341785880,1731227442206,-500.0,0.00030136,2]
[341785881,1731227442215,-504.33291758,0.00030136,2]
[341785882,1731227442223,-500.0,0.00030136,2]
[341785883,1731227442232,-500.0,0.00030136,2]
[341785884,1731227442241,-500.0,0.00030136,2]
[341785885,1731227442251,-500.0,0.00030136,2]
[341785886,1731227442260,-500.0,0.00030136,2]
[341785887,1731227442268,-500.0,0.00030136,2]
[341785888,1731227442278,-500.0,0.00030136,2]
[341785889,1731227442288,-500.0,0.00030136,2]
[341785890,1731227442297,-500.0,0.00030136,2]
[341785892,1731227442381,-570.67,0.00030136,2]
[341785893,1731227442390,-581.61365608,0.00030136,2]
[341785894,1731227442403,-590.69378979,0.00030136,2]
[341785895,1731227442412,-500.0,0.00030136,2]
[341785896,1731227442421,-500.0,0.00030136,2]
[341785897,1731227442430,-151.0,0.00030136,7]
[341785898,1731227442439,-151.0,0.00030136,7]
[341785899,1731227442448,-500.0,0.00030136,2]
[341785900,1731227442457,-500.0,0.00030136,2]
[341785902,1731227442466,-500.0,0.00030136,2]
[341785903,1731227442477,-500.0,0.00030136,2]
[341785904,1731227442486,-500.0,0.00030136,2]
[341785905,1731227442496,-500.0,0.00030136,2]
[341785906,1731227442505,-500.0,0.00030136,2]
[341785908,1731227442515,-169.30403693,0.00030136,2]
[341785910,1731227442524,-151.0,0.00030136,7]
[341785911,1731227442533,-151.0,0.00030136,7]
[341785912,1731227442542,-151.0,0.00030136,7]
[341785913,1731227442551,-154.699475,0.00030136,7]
[341785914,1731227442560,-500.0,0.00030136,2]
[341785915,1731227442569,-500.0,0.00030136,2]
[341785916,1731227442578,-500.0,0.00030136,2]
[341785917,1731227442587,-503.57937093,0.00030136,2]
[341785918,1731227442596,-500.0,0.00030136,2]
[341785919,1731227442607,-500.0,0.00030136,2]
[341785920,1731227442616,-500.0,0.00030136,2]
[341785921,1731227442625,-500.0,0.00030136,2]
[341785922,1731227442634,-500.0,0.00030136,2]
[341785923,1731227442643,-500.0,0.00030136,2]
[341785924,1731227442652,-500.0,0.00030136,2]
[341785925,1731227442661,-1510.92,0.00030136,2]
[341785926,1731227442670,-3434.78,0.00030136,2]
[341785927,1731227442679,-151.0,0.00030136,7]
[341785928,1731227442689,-500.0,0.00030136,2]
[341785929,1731227442697,-153.693762,0.00030136,7]
[341785930,1731227442707,-500.0,0.00030136,2]
[341785931,1731227442716,-500.0,0.00030136,2]
[341785932,1731227442725,-500.0,0.00030136,2]
[341785933,1731227442735,-500.0,0.00030136,2]
[341785934,1731227442744,-500.0,0.00030136,2]
[341785935,1731227442753,-500.0,0.00030136,2]
[341785936,1731227442762,-500.0,0.00030136,2]
[341785938,1731227442772,-500.0,0.00030136,2]
[341785940,1731227442781,-566.83150239,0.00030136,2]
[341785942,1731227442791,-500.0,0.00030136,2]
[341785944,1731227442800,-500.0,0.00030136,2]
[341785945,1731227442809,-151.0,0.00030136,7]
[341785947,1731227442819,-157.346278,0.00030136,7]
[341785949,1731227442829,-500.0,0.00030136,2]
[341785951,1731227442838,-500.0,0.00030136,2]
[341785952,1731227442847,-500.0,0.00030136,2]
[341785953,1731227442856,-500.0,0.00030136,2]
[341785955,1731227442865,-511.29685539,0.00030136,2]
[341785957,1731227442874,-500.0,0.00030136,2]
[341785959,1731227442883,-508.89288883,0.00030136,2]
[341785961,1731227442893,-500.0,0.00030136,2]
[341785963,1731227442902,-500.0,0.00030136,2]
[341785965,1731227442911,-500.0,0.00030136,2]
[341785967,1731227442920,-500.0,0.00030136,2]
[341785968,1731227442929,-500.0,0.00030136,2]
[341785969,1731227442939,-500.0,0.00030136,2]
[341785970,1731227442948,-542.22,0.00030136,2]
[341785971,1731227442956,-4843.84,0.00030136,2]
[341785972,1731227442966,-500.0,0.00030136,2]
[341785973,1731227442975,-500.0,0.00030136,2]
[341785975,1731227442985,-500.0,0.00030136,2]
[341785977,1731227442994,-500.0,0.00030136,2]
[341785978,1731227443003,-500.0,0.00030136,2]
[341785979,1731227443012,-500.0,0.00030136,2]
[341785980,1731227443022,-500.0,0.00030136,2]
[341785981,1731227443031,-500.0,0.00030136,2]
[341785982,1731227443042,-500.0,0.00030136,2]
[341785983,1731227443051,-500.0,0.00030136,2]
[341785984,1731227443060,-500.0,0.00030136,2]
[341785985,1731227443069,-500.0,0.00030136,2]
[341785986,1731227443078,-500.0,0.00030136,2]
[341785987,1731227443087,-500.0,0.00030136,2]
[341785988,1731227443096,-1049.13,0.00030136,2]
[341785989,1731227443105,-500.0,0.00030136,2]
[341785990,1731227443114,-500.0,0.00030136,2]
[341785991,1731227443123,-500.0,0.00030136,2]
[341785992,1731227443133,-259.255031,0.00030136,7]
[341785993,1731227443143,-506.32920754,0.00030136,2]
[341785994,1731227443152,-500.0,0.00030136,2]
[341785995,1731227443162,-259.255031,0.00030136,7]
[341785996,1731227443171,-500.0,0.00030136,2]
[341785997,1731227443180,-500.0,0.00030136,2]
[341785998,1731227443189,-1889.78,0.00030136,2]
[341785999,1731227443198,-500.0,0.00030136,2]
[341786000,1731227443207,-1889.78,0.00030136,2]
[341786001,1731227443216,-1889.78,0.00030136,2]
[341786002,1731227443226,-1889.78,0.00030136,2]
[341786003,1731227443235,-1889.78,0.00030136,2]
[341786004,1731227443244,-1889.78,0.00030136,2]
[341786005,1731227443253,-1889.78,0.00030136,2]
[341786006,1731227443262,-500.0,0.00030136,2]
[341786007,1731227443271,-1889.78,0.00030136,2]
[341786008,1731227443280,-259.255031,0.00030136,7]
[341786010,1731227443291,-1889.78,0.00030136,2]
[341786012,1731227443300,-1889.78,0.00030136,2]
[341786014,1731227443309,-259.255031,0.00030136,7]
[341786016,1731227443319,-1889.78,0.00030136,2]
[341786018,1731227443328,-500.0,0.00030136,2]
[341786020,1731227443337,-1889.78,0.00030136,2]
[341786022,1731227443347,-1889.78,0.00030136,2]
[341786024,1731227443356,-1889.78,0.00030136,2]
[341786026,1731227443365,-1889.78,0.00030136,2]
[341786028,1731227443375,-500.0,0.00030136,2]
[341786030,1731227443384,-1889.78,0.00030136,2]
[341786032,1731227443394,-503.30486749,0.00030136,2]
[341786034,1731227443406,-1889.78,0.00030136,2]
[341786036,1731227443415,-500.0,0.00030136,2]
[341786038,1731227443424,-504.08773608,0.00030136,2]
[341786040,1731227443434,-499.56104134,0.00030136,2]
[341786042,1731227443444,-509.2,0.00030136,2]
[341786044,1731227443453,-500.0,0.00030136,2]
[341786046,1731227443462,-151.0,0.00030136,2]
[341786048,1731227443473,-151.0,0.00030136,2]
[341786050,1731227443482,-151.0,0.00030136,2]
[341786052,1731227443491,-151.0,0.00030136,2]
[341786054,1731227443500,-178.9322912,0.00030136,2]
[341786056,1731227443509,-500.0,0.00030136,2]
[341786057,1731227443518,-500.0,0.00030136,2]
[341786058,1731227443527,-2336.0,0.00030136,2]
[341786060,1731227443536,-500.0,0.00030136,2]
[341786061,1731227443545,-500.0,0.00030136,2]
[341786063,1731227443554,-549.4,0.00030136,2]
[341786064,1731227443564,-500.0,0.00030136,2]
[341786065,1731227443574,-501.41449765,0.00030136,2]
[341786066,1731227443583,-500.0,0.00030136,2]
[341786067,1731227443592,-500.0,0.00030136,2]
[341786068,1731227443601,-500.0,0.00030136,2]
[341786069,1731227443610,-500.0,0.00030136,2]
[341786070,1731227443619,-411.80809852,0.00030136,2]
[341786071,1731227443628,-500.0,0.00030136,2]
[341786072,1731227443637,-341.78713437,0.00030136,2]
[341786073,1731227443647,-500.0,0.00030136,2]
[341786074,1731227443656,-500.0,0.00030136,2]
[341786075,1731227443665,-500.0,0.00030136,2]
[341786076,1731227443674,-500.0,0.00030136,2]
[341786077,1731227443683,-500.0,0.00030136,2]
[341786078,1731227443692,-500.0,0.00030136,2]
[341786079,1731227443701,-207.276775,0.00030136,7]
[341786080,1731227443711,-500.0,0.00030136,2]
[341786081,1731227443721,-207.276775,0.00030136,7]
[341786082,1731227443730,-207.276775,0.00030136,7]
[341786083,1731227443739,-207.276775,0.00030136,7]
[341786084,1731227443748,-932.9,0.00030136,2]
[341786085,1731227443758,-207.276775,0.00030136,7]
[341786086,1731227443767,-207.276775,0.00030136,7]
[341786087,1731227443777,-207.276775,0.00030136,7]
[341786088,1731227443786,-207.276775,0.00030136,7]
[341786089,1731227443795,-500.0,0.00030136,2]
[341786090,1731227443804,-500.0,0.00030136,2]
[341786091,1731227443814,-500.0,0.00030136,2]
[341786092,1731227443823,-500.0,0.00030136,2]
[341786093,1731227443833,-500.0,0.00030136,2]
[341786094,1731227443843,-500.0,0.00030136,2]
[341786095,1731227443852,-500.0,0.00030136,2]
[341786096,1731227443863,-500.0,0.00030136,2]
[341786097,1731227443872,-478.63662479,0.00030136,2]
[341786098,1731227443881,-500.0,0.00030136,2]
[341786099,1731227443890,-500.0,0.00030136,2]
[341786100,1731227443899,-500.0,0.00030136,2]
[341786101,1731227443909,-500.0,0.00030136,2]
[341786102,1731227443919,-500.0,0.00030136,2]
[341786103,1731227443928,-19230.79264533,0.00030136,2]
[341786104,1731227443938,-500.0,0.00030136,2]
[341786105,1731227443948,-1987.54,0.00030136,2]
[341786106,1731227443958,-500.0,0.00030136,2]
[341786107,1731227443967,-500.0,0.00030136,2]
[341786108,1731227443977,-574.7772369,0.00030136,2]
[341786109,1731227444055,-3430.1,0.00030136,120]
[341786110,1731227444065,-500.0,0.00030136,2]
[341786111,1731227444074,-623.91,0.00030136,2]
[341786112,1731227444083,-500.0,0.00030136,2]
[341786113,1731227444093,-471.18795768,0.00030136,28]
[341786114,1731227444102,-500.0,0.00030136,2]
[341786115,1731227444111,-500.0,0.00030136,2]
[341786116,1731227444120,-466.36602539,0.00030136,2]
[341786117,1731227444129,-151.0,0.00030136,7]
[341786118,1731227444139,-506.7183527,0.00030136,2]
[341786119,1731227444148,-151.0,0.00030136,7]
[341786120,1731227444157,-640.78,0.00030136,120]
[341786121,1731227444166,-151.0,0.00030136,7]
[341786122,1731227444175,-271.626444,0.00030136,7]
[341786123,1731227444185,-524.12133135,0.00030136,2]
[341786124,1731227444194,-559.20774295,0.00030136,2]
[341786125,1731227444203,-500.0,0.00030136,2]
[341786126,1731227444213,-500.0,0.00030136,2]
[341786127,1731227444222,-151.0,0.00030136,7]
[341786128,1731227444230,-500.0,0.00030136,2]
[341786129,1731227444239,-151.0,0.00030136,7]
[341786130,1731227444249,-151.0,0.00030136,7]
[341786131,1731227444258,-191.783028,0.00030136,7]
[341786132,1731227444267,-500.0,0.00030136,2]
[341786133,1731227444277,-500.0,0.00030136,2]
[341786134,1731227444286,-500.0,0.00030136,2]
[341786135,1731227444295,-500.0,0.00030136,2]
[341786136,1731227444304,-500.0,0.00030136,2]
[341786137,1731227444314,-500.0,0.00030136,2]
[341786138,1731227444323,-500.0,0.00030136,2]
[341786139,1731227444332,-500.0,0.00030136,2]
[341786140,1731227444342,-500.0,0.00030136,2]
[341786141,1731227444352,-500.0,0.00030136,2]
[341786142,1731227444361,-500.0,0.00030136,2]
[341786143,1731227444371,-250.0,0.00030136,2]
[341786144,1731227444380,-508.86533384,0.00030136,2]
[341786145,1731227444390,-500.0,0.00030136,2]
[341786146,1731227444403,-500.0,0.00030136,2]
[341786147,1731227444413,-500.0,0.00030136,2]
[341786148,1731227444422,-500.0,0.00030136,2]
[341786149,1731227444433,-635.24,0.00030136,2]
[341786150,1731227444443,-500.0,0.00030136,2]
[341786151,1731227444453,-151.0,0.00030136,7]
[341786152,1731227444462,-151.0,0.00030136,7]
[341786153,1731227444471,-151.0,0.00030136,7]
[341786154,1731227444486,-151.0,0.00030136,7]
[341786155,1731227444495,-500.0,0.00030136,2]
[341786156,1731227444504,-185.450288,0.00030136,7]
[341786157,1731227444514,-500.0,0.00030136,2]
[341786158,1731227444523,-502.63990946,0.00030136,2]
[341786159,1731227444532,-500.0,0.00030136,2]
[341786160,1731227444544,-500.0,0.00030136,2]
[341786161,1731227444553,-157.6131662,0.00030148,2]
[341786162,1731227444562,-500.0,0.00030152,2]
[341786163,1731227444573,-201.69309713,0.00030173,5]
[341786164,1731227444582,-500.0,0.00030173,5]
[341786165,1731227444591,-500.0,0.00030173,5]
[341786166,1731227444600,-500.21512103,0.00030173,5]
[341786167,1731227444609,-500.0,0.00030173,5]
[341786168,1731227444619,-500.0,0.00030173,5]
[341786169,1731227444628,-150.73391277,0.00030173,5]
[341786170,1731227444638,-363.54342715,0.00030173,5]
[341786171,1731227444647,-173.08212177,0.00030173,5]
[341786172,1731227444657,-502.5963108,0.00030173,5]
[341786173,1731227444667,-500.0,0.00030173,5]
[341786174,1731227444676,-500.0,0.00030173,5]
[341786175,1731227444685,-500.0,0.00030173,5]
[341786176,1731227444695,-158.7812064,0.00030173,5]
[341786177,1731227444704,-160.49775391,0.00030173,5]
[341786178,1731227444713,-500.0,0.00030173,2]
[341786179,1731227444723,-156.413541,0.00030196,7]
[341786180,1731227444733,-151.0,0.00030196,7]
[341786181,1731227444743,-151.0,0.00030196,7]
[341786182,1731227444752,-151.0,0.00030196,7]
[341786183,1731227444762,-151.0,0.00030196,7]
[341786184,1731227444771,-921.65870226,0.00030232,2]
[341786185,1731227444780,-1889.78,0.00030307,2]
[341786186,1731227444791,-1889.78,0.00030307,2]
[341786187,1731227444801,-37246.38666938,0.00030308,3]
[341786188,1731227444811,-194.056239,0.00030308,7]
[341786189,1731227444820,-194.056239,0.00030308,7]
[341786190,1731227444829,-500.0,0.00030309,2]
[341786191,1731227444838,-500.0,0.00030309,2]
[341786192,1731227444848,-500.0,0.00030309,2]
[341786193,1731227444857,-194.056239,0.00030309,7]
[341786194,1731227444866,-194.056239,0.00030309,7]
[341786195,1731227444875,-456.413663,0.00030309,7]
[341786196,1731227444885,-456.413663,0.00030309,7]
[341786197,1731227444894,-151.0,0.00030309,7]
[341786198,1731227444903,-151.0,0.00030309,7]
[341786199,1731227444912,-259.255031,0.00030309,7]
[341786200,1731227444922,-259.255031,0.00030309,7]
[341786201,1731227444931,-1889.78,0.00030309,2]
[341786202,1731227444940,-1889.78,0.00030309,2]
[341786203,1731227444949,-1889.78,0.00030309,2]
[341786204,1731227444959,-1889.78,0.00030309,2]
[341786205,1731227444968,-1889.83184169,0.00030309,2]
[341786206,1731227444977,-151.0,0.00030309,2]
[341786207,1731227444987,-207.276775,0.00030309,7]
[341786208,1731227444997,-207.276775,0.00030309,7]
[341786209,1731227445006,-151.0,0.0003031,7]
[341786210,1731227445016,-151.0,0.0003031,7]
[341786211,1731227445025,-151.0,0.0003031,7]
[341786212,1731227445035,-151.0,0.0003031,7]
[341786213,1731227445045,-195.531826,0.0003031,7]
[341786214,1731227445054,-151.0,0.0003031,7]
[341786215,1731227445063,-195.531826,0.0003031,7]
[341786216,1731227445072,-151.0,0.0003031,7]
[341786217,1731227445081,-151.0,0.0003031,7]
[341786218,1731227445090,-151.0,0.0003031,7]
[341786219,1731227445099,-151.0,0.0003031,7]
[341786220,1731227445108,-151.0,0.0003031,7]
[341786221,1731227445118,-674.494246,0.0003031,7]
[341786222,1731227445127,-674.494246,0.0003031,7]
[341786223,1731227445136,-151.0,0.0003031,7]
[341786224,1731227445145,-151.0,0.0003031,7]
[341786225,1731227445154,-749.355684,0.0003031,7]
[341786226,1731227445163,-749.355684,0.0003031,7]
[341786227,1731227445172,-154.989726,0.0003031,7]
[341786228,1731227445182,-151.0,0.0003031,2]
[341786229,1731227445192,-151.0,0.0003031,7]
[341786230,1731227445201,-151.0,0.0003031,7]
[341786231,1731227445210,-151.0,0.0003031,3]
[341786232,1731227445219,-456.413663,0.0003031,7]
[341786233,1731227445229,-456.413663,0.0003031,7]
[341786234,1731227445238,-150.89420809,0.0003031,3]
[341786235,1731227445248,-360.541702,0.0003031,7]
[341786236,1731227445257,-360.541702,0.0003031,7]
[341786237,1731227445266,-151.0,0.0003031,7]
[341786238,1731227445275,-936.83144299,0.0003031,2]
[341786239,1731227445285,-259.255031,0.0003031,7]
[341786240,1731227445295,-259.255031,0.0003031,7]
[341786241,1731227445304,-17664.31625766,0.0003031,21]
[341786242,1731227445314,-165.183,0.0003034,120]
[341786243,1731227445323,-866.72959269,0.00030377,2]
[341786244,1731227445332,-459.48836687,0.00030399,2]
[341786245,1731227445342,-151.0,0.00030399,7]
[341786246,1731227445351,-151.0,0.00030399,7]
[341786247,1731227445363,-151.0,0.00030399,3]
[341786248,1731227445372,-360.541702,0.00030399,7]
[341786249,1731227445381,-360.541702,0.00030399,7]
[341786250,1731227445395,-8222.195061,0.000304,2]
[341786251,1731227445404,-8222.19506097,0.000304,2]
[341786252,1731227445414,-8222.19506097,0.000304,2]
[341786253,1731227445423,-8222.19506097,0.000304,2]
[341786254,1731227445434,-194.056239,0.000304,7]
[341786255,1731227445443,-194.056239,0.000304,7]
[341786256,1731227445453,-151.0,0.000304,7]
[341786257,1731227445462,-151.0,0.000304,2]
[341786259,1731227445473,-207.276775,0.000304,7]
[341786260,1731227445482,-207.276775,0.000304,7]
[341786262,1731227445492,-151.0,0.00030408,7]
[341786264,1731227445501,-151.0,0.00030408,7]
[341786266,1731227445511,-151.0,0.00030408,7]
[341786267,1731227445520,-151.0,0.00030408,7]
[341786268,1731227445529,-151.0,0.00030409,7]
[341786270,1731227445540,-151.0,0.00030409,7]
[341786272,1731227445550,-151.0,0.00030409,7]
[341786274,1731227445559,-151.0,0.00030409,7]
[341786275,1731227445644,-151.0,0.00030409,7]
[341786276,1731227445655,-151.0,0.00030409,7]
[341786277,1731227445664,-151.0,0.00030409,3]
[341786278,1731227445673,-456.82881318,0.00030409,2]
[341786279,1731227445683,-281.25408269,0.00030409,2]
[341786280,1731227445692,-500.0,0.00030409,2]
[341786282,1731227445702,-500.0,0.00030409,2]
[341786283,1731227445712,-500.0,0.00030409,2]
[341786284,1731227445723,-282.20658854,0.00030409,2]
[341786286,1731227445732,-566.58127002,0.00030409,2]
[341786287,1731227445742,-500.0,0.00030409,2]
[341786289,1731227445751,-500.0,0.00030409,2]
[341786290,1731227445760,-500.0,0.00030409,2]
[341786291,1731227445769,-227.37323667,0.00030409,2]
[341786292,1731227445778,-298.11476018,0.00030409,2]
[341786293,1731227445788,-500.0,0.00030409,2]
[341786294,1731227445798,-500.0,0.00030409,2]
[341786295,1731227445807,-500.0,0.00030409,2]
[341786296,1731227445817,-500.0,0.00030409,2]
[341786297,1731227445826,-500.0,0.00030409,2]
[341786298,1731227445836,-456.413663,0.00030409,7]
[341786299,1731227445845,-456.413663,0.00030409,7]
[341786300,1731227445855,-360.541702,0.00030409,7]
[341786301,1731227445865,-360.541702,0.00030409,7]
[341786302,1731227445874,-151.0,0.00030409,7]
[341786303,1731227445883,-259.255031,0.00030409,7]
[341786304,1731227445893,-259.255031,0.00030409,7]
[341786305,1731227445903,-500.0,0.0003041,2]
[341786306,1731227445914,-151.0,0.0003041,7]
[341786307,1731227445924,-152.089447,0.0003041,7]
[341786308,1731227445934,-401.52459924,0.0003041,2]
[341786309,1731227445944,-156.347211,0.0003041,7]
[341786310,1731227445955,-500.0,0.0003041,2]
[341786311,1731227445966,-215.59501037,0.0003041,2]
[341786312,1731227445976,-151.13312428,0.0003041,2]
[341786313,1731227445987,-151.0,0.0003041,7]
[341786314,1731227445998,-151.0,0.0003041,7]
[341786315,1731227446007,-151.0,0.0003041,7]
[341786316,1731227446017,-500.0,0.0003041,2]
[341786317,1731227446027,-520.88317783,0.0003041,2]
[341786318,1731227446037,-151.0,0.0003041,7]
[341786319,1731227446048,-151.0,0.0003041,7]
[341786320,1731227446059,-500.0,0.0003041,2]
[341786321,1731227446069,-500.0,0.0003041,2]
[341786322,1731227446079,-500.0,0.0003041,2]
[341786323,1731227446089,-195.531826,0.0003041,7]
[341786324,1731227446099,-195.531826,0.0003041,7]
[341786325,1731227446109,-151.0,0.0003041,7]
[341786326,1731227446119,-195.531826,0.0003041,7]
[341786327,1731227446129,-151.0,0.0003041,7]
[341786328,1731227446139,-195.531826,0.0003041,7]
[341786329,1731227446149,-598.77983415,0.0003041,2]
[341786330,1731227446158,-500.0,0.0003041,2]
[341786331,1731227446168,-510.80193615,0.0003041,2]
[341786332,1731227446177,-500.0,0.0003041,2]
[341786333,1731227446188,-511.5680781,0.0003041,2]
[341786334,1731227446198,-500.0,0.0003041,15]
[341786335,1731227446208,-500.0,0.0003041,2]
[341786336,1731227446218,-211.621944,0.0003041,7]
[341786337,1731227446228,-500.0,0.0003041,2]
[341786338,1731227446238,-500.0,0.0003041,2]
[341786339,1731227446247,-500.0,0.0003041,2]
[341786340,1731227446256,-500.0,0.0003041,2]
[341786341,1731227446266,-500.0,0.0003041,2]
[341786342,1731227446276,-500.0,0.0003041,2]
[341786343,1731227446286,-500.0,0.0003041,2]
[341786344,1731227446296,-500.0,0.0003041,2]
[341786345,1731227446305,-500.0,0.0003041,2]
[341786346,1731227446315,-209.486231,0.0003041,7]
[341786347,1731227446326,-500.0,0.0003041,2]
[341786348,1731227446335,-500.0,0.0003041,2]
[341786349,1731227446345,-500.0,0.0003041,2]
[341786350,1731227446355,-500.0,0.0003041,2]
[341786351,1731227446365,-151.0,0.0003041,7]
[341786352,1731227446375,-151.0,0.0003041,7]
[341786353,1731227446384,-603.10183963,0.0003041,2]
[341786354,1731227446396,-151.0,0.0003041,7]
[341786355,1731227446406,-500.0,0.0003041,2]
[341786356,1731227446416,-151.0,0.0003041,7]
[341786357,1731227446425,-500.0,0.0003041,2]
[341786358,1731227446437,-285.240845,0.0003041,7]
[341786359,1731227446446,-500.0,0.0003041,2]
[341786360,1731227446456,-500.0,0.0003041,2]
[341786361,1731227446467,-614.290382,0.0003041,2]
[341786362,1731227446478,-500.0,0.0003041,2]
[341786363,1731227446488,-503.02581324,0.0003041,2]
[341786364,1731227446498,-500.0,0.0003041,2]
[341786365,1731227446508,-674.494246,0.0003041,7]
[341786366,1731227446518,-500.0,0.0003041,2]
[341786367,1731227446528,-500.0,0.0003041,2]
[341786368,1731227446537,-222.32675147,0.0003041,7]
[341786369,1731227446659,-452.16749453,0.0003041,7]
[341786370,1731227446669,-399.73,0.0003041,2]
[341786371,1731227446678,-505.6056879,0.0003041,2]
[341786372,1731227446688,-583.15803438,0.0003041,7]
[341786373,1731227446700,-91.33621162,0.0003041,7]
[341786374,1731227446710,-674.494246,0.0003041,7]
[341786375,1731227446720,-278.10742104,0.0003041,2]
[341786376,1731227446729,-506.58546836,0.0003041,2]
[341786377,1731227446739,-594.45451553,0.0003041,2]
[341786378,1731227446749,-290.98080858,0.0003041,2]
[341786379,1731227446759,-151.0,0.0003041,7]
[341786380,1731227446768,-151.0,0.0003041,7]
[341786381,1731227446778,-151.0,0.0003041,7]
[341786382,1731227446789,-162.155032,0.0003041,7]
[341786383,1731227446799,-508.46126534,0.0003041,2]